[Event "Early-Titled-Tuesday-Blitz-September-26-2023"]
[Site "Chess.com"]
[Date "2023.09.26"]
[Round "2"]
[White "Eloist"]
[Black "Yuruultei"]
[Result "1-0"]
[WhiteElo "2495"]
[BlackElo "2282"]
[TimeControl "180+1"]
[EndTime "8:17:20 PDT"]
[Termination "Eloist won by resignation"]

1. e4 {[%clk 0:02:58.2]} 1... c5 {[%clk 0:02:59.6]} 2. Nf3 {[%clk 0:02:57.8]}
2... e6 {[%clk 0:02:59.8]} 3. d4 {[%clk 0:02:57.4]} 3... cxd4 {[%clk 0:03:00.7]}
4. Nxd4 {[%clk 0:02:57.6]} 4... Nc6 {[%clk 0:03:01.6]} 5. Nc3 {[%clk 0:02:57.4]}
5... a6 {[%clk 0:03:01.9]} 6. Be3 {[%clk 0:02:57]} 6... Nf6 {[%clk 0:03:01.4]}
7. Nxc6 {[%clk 0:02:54]} 7... bxc6 {[%clk 0:03:00.7]} 8. e5 {[%clk 0:02:52.3]}
8... Nd5 {[%clk 0:03:00.4]} 9. Nxd5 {[%clk 0:02:46.9]} 9... cxd5 {[%clk
0:03:01.3]} 10. Bd3 {[%clk 0:02:43.4]} 10... d6 {[%clk 0:02:59.9]} 11. Bd4
{[%clk 0:02:29.6]} 11... dxe5 {[%clk 0:02:46.7]} 12. Bxe5 {[%clk 0:02:29.4]}
12... f6 {[%clk 0:02:46]} 13. Qh5+ {[%clk 0:01:59.4]} 13... g6 {[%clk
0:02:42.4]} 14. Bxg6+ {[%clk 0:01:57.7]} 14... hxg6 {[%clk 0:02:38.5]} 15. Qxg6+
{[%clk 0:01:31.1]} 15... Kd7 {[%clk 0:02:36.4]} 16. Bxf6 {[%clk 0:01:28.9]}
16... Be7 {[%clk 0:02:16.6]} 17. Bxh8 {[%clk 0:01:22.6]} 17... Qxh8 {[%clk
0:02:14.6]} 18. O-O-O {[%clk 0:01:20.4]} 18... Rb8 {[%clk 0:02:09.3]} 19. c3
{[%clk 0:01:15.5]} 19... Bb7 {[%clk 0:01:59.2]} 20. Rhe1 {[%clk 0:01:05.7]}
20... Qg8 {[%clk 0:01:48.7]} 21. Qxg8 {[%clk 0:00:56.2]} 21... Rxg8 {[%clk
0:01:49.6]} 22. g3 {[%clk 0:00:55.7]} 22... Bc6 {[%clk 0:01:41.7]} 23. f4 {[%clk
0:00:50.9]} 23... Bb5 {[%clk 0:01:37.7]} 24. Kc2 {[%clk 0:00:43.6]} 24... Rh8
{[%clk 0:01:32.4]} 25. Rd2 {[%clk 0:00:43]} 25... Bd6 {[%clk 0:01:22.2]} 26. f5
{[%clk 0:00:41.7]} 26... Rh6 {[%clk 0:01:15.8]} 27. fxe6+ {[%clk 0:00:30.1]}
27... Rxe6 {[%clk 0:01:13.6]} 28. Rxe6 {[%clk 0:00:29.8]} 28... Kxe6 {[%clk
0:00:37.2]} 29. b3 {[%clk 0:00:29.2]} 29... Be8 {[%clk 0:00:13.9]} 30. Rd4
{[%clk 0:00:23.5]} 30... Bg6+ {[%clk 0:00:14.8]} 31. Kd2 {[%clk 0:00:22.9]}
31... Be5 {[%clk 0:00:15.7]} 32. Ra4 {[%clk 0:00:21.6]} 32... Kf5 {[%clk
0:00:12.9]} 33. Rxa6 {[%clk 0:00:20.4]} 33... Ke4 {[%clk 0:00:13.4]} 34. Rxg6
{[%clk 0:00:18.9]} 1-0

[Event "Early-Titled-Tuesday-Blitz-September-26-2023"]
[Site "Chess.com"]
[Date "2023.09.26"]
[Round "2"]
[White "Dedic8"]
[Black "IngOscarArdila"]
[Result "1-0"]
[WhiteElo "2815"]
[BlackElo "2383"]
[TimeControl "180+1"]
[EndTime "8:17:21 PDT"]
[Termination "Dedic8 won by resignation"]

1. d4 {[%clk 0:03:00.9]} 1... Nf6 {[%clk 0:03:00.3]} 2. c4 {[%clk 0:03:01.4]}
2... e6 {[%clk 0:03:00.8]} 3. Nc3 {[%clk 0:03:02]} 3... d5 {[%clk 0:03:01.1]} 4.
cxd5 {[%clk 0:03:02.1]} 4... exd5 {[%clk 0:03:01.1]} 5. Bg5 {[%clk 0:03:02.4]}
5... c6 {[%clk 0:03:01.5]} 6. e3 {[%clk 0:03:02.9]} 6... Be7 {[%clk 0:03:01.9]}
7. Bd3 {[%clk 0:03:03.5]} 7... Nbd7 {[%clk 0:03:01]} 8. h3 {[%clk 0:02:59.4]}
8... h6 {[%clk 0:03:00.8]} 9. Bf4 {[%clk 0:02:59.7]} 9... O-O {[%clk 0:03:00.9]}
10. Nf3 {[%clk 0:02:58.9]} 10... Re8 {[%clk 0:03:01.2]} 11. Qc2 {[%clk
0:02:53.7]} 11... Nf8 {[%clk 0:02:59.7]} 12. O-O-O {[%clk 0:02:49.8]} 12... Bd6
{[%clk 0:03:00]} 13. Ne5 {[%clk 0:02:46.9]} 13... Bxe5 {[%clk 0:02:54.4]} 14.
Bxe5 {[%clk 0:02:45]} 14... N6d7 {[%clk 0:02:53.6]} 15. Bf4 {[%clk 0:02:42.7]}
15... Ne6 {[%clk 0:02:51.1]} 16. Bh2 {[%clk 0:02:35.8]} 16... Ndf8 {[%clk
0:02:45.6]} 17. g4 {[%clk 0:02:35.6]} 17... Qe7 {[%clk 0:02:37.5]} 18. Bg3
{[%clk 0:02:30.5]} 18... Ng5 {[%clk 0:02:37.3]} 19. Bh4 {[%clk 0:02:03.7]} 19...
f6 {[%clk 0:02:26]} 20. Kb1 {[%clk 0:01:54]} 20... Ne4 {[%clk 0:02:25.6]} 21.
Nxe4 {[%clk 0:01:42.4]} 21... dxe4 {[%clk 0:02:23.9]} 22. Be2 {[%clk 0:01:43.1]}
22... Be6 {[%clk 0:02:21.6]} 23. Bg3 {[%clk 0:01:43.6]} 23... Bd5 {[%clk
0:02:20.1]} 24. h4 {[%clk 0:01:44.1]} 24... b5 {[%clk 0:02:16.5]} 25. Qd2 {[%clk
0:01:38.3]} 25... a5 {[%clk 0:02:15.1]} 26. Rc1 {[%clk 0:01:38.8]} 26... b4
{[%clk 0:02:13.4]} 27. Bc4 {[%clk 0:01:34.5]} 27... Rec8 {[%clk 0:02:04.9]} 28.
Qe2 {[%clk 0:01:19.9]} 28... Qe6 {[%clk 0:02:04.2]} 29. g5 {[%clk 0:01:16.4]}
29... Nd7 {[%clk 0:01:56.3]} 30. gxh6 {[%clk 0:01:14.1]} 30... gxh6 {[%clk
0:01:56.5]} 31. Bf4 {[%clk 0:01:12.8]} 31... Kh7 {[%clk 0:01:56.6]} 32. Rhg1
{[%clk 0:01:02.7]} 32... Bxc4 {[%clk 0:01:38.9]} 33. Rxc4 {[%clk 0:00:59.2]}
33... Rg8 {[%clk 0:01:38.4]} 34. Rgc1 {[%clk 0:00:58.7]} 34... Rac8 {[%clk
0:01:32.5]} 35. Qh5 {[%clk 0:00:57.8]} 35... f5 {[%clk 0:01:30.4]} 36. d5 {[%clk
0:00:58.2]} 36... Qg6 {[%clk 0:01:25.1]} 37. Qxg6+ {[%clk 0:00:56.1]} 37... Rxg6
{[%clk 0:01:26]} 38. h5 {[%clk 0:00:53.7]} 38... Rf6 {[%clk 0:01:13.6]} 39. Rxc6
{[%clk 0:00:52.4]} 39... Rfxc6 {[%clk 0:01:07.7]} 40. Rxc6 {[%clk 0:00:52]}
40... Rg8 {[%clk 0:00:26.2]} 41. Rxh6+ {[%clk 0:00:50.3]} 41... Kg7 {[%clk
0:00:25.7]} 42. Rg6+ {[%clk 0:00:49.1]} 42... Kf7 {[%clk 0:00:25.7]} 43. Rxg8
{[%clk 0:00:49.2]} 43... Kxg8 {[%clk 0:00:26]} 44. h6 {[%clk 0:00:48.4]} 44...
Kh7 {[%clk 0:00:26.3]} 45. Kc2 {[%clk 0:00:46.4]} 45... Nf6 {[%clk 0:00:25.9]}
46. d6 {[%clk 0:00:46.3]} 46... Kg6 {[%clk 0:00:25.4]} 47. Kb3 {[%clk
0:00:45.7]} 47... Kf7 {[%clk 0:00:19.8]} 48. Ka4 {[%clk 0:00:46]} 48... Ke6
{[%clk 0:00:20]} 49. Kxa5 {[%clk 0:00:46.6]} 49... Ng4 {[%clk 0:00:18.7]} 50. h7
{[%clk 0:00:46.6]} 1-0

[Event "Early-Titled-Tuesday-Blitz-September-26-2023"]
[Site "Chess.com"]
[Date "2023.09.26"]
[Round "2"]
[White "Msb2"]
[Black "LeoLV10"]
[Result "1-0"]
[WhiteElo "3086"]
[BlackElo "2643"]
[TimeControl "180+1"]
[EndTime "8:17:22 PDT"]
[Termination "Msb2 won by resignation"]

1. d4 {[%clk 0:03:00.9]} 1... Nf6 {[%clk 0:02:59.5]} 2. c4 {[%clk 0:03:01.6]}
2... e6 {[%clk 0:02:59.3]} 3. Nc3 {[%clk 0:03:02.3]} 3... Bb4 {[%clk 0:02:59.2]}
4. e3 {[%clk 0:03:02.6]} 4... b6 {[%clk 0:02:58.9]} 5. Bd3 {[%clk 0:03:02.1]}
5... Bb7 {[%clk 0:02:58.1]} 6. Nf3 {[%clk 0:03:02.8]} 6... Ne4 {[%clk
0:02:57.3]} 7. O-O {[%clk 0:03:02.8]} 7... Nxc3 {[%clk 0:02:52.7]} 8. bxc3
{[%clk 0:03:03.7]} 8... Be7 {[%clk 0:02:53.3]} 9. e4 {[%clk 0:03:03.5]} 9... d6
{[%clk 0:02:50.3]} 10. Qe2 {[%clk 0:03:01]} 10... Nd7 {[%clk 0:02:50.3]} 11. Bf4
{[%clk 0:03:00.5]} 11... g5 {[%clk 0:02:45.5]} 12. Be3 {[%clk 0:02:54.3]} 12...
h5 {[%clk 0:02:45.5]} 13. Nd2 {[%clk 0:02:54.1]} 13... e5 {[%clk 0:02:42.8]} 14.
a4 {[%clk 0:02:50.6]} 14... a5 {[%clk 0:02:34.1]} 15. Nb3 {[%clk 0:02:50.7]}
15... c5 {[%clk 0:02:26.4]} 16. Nd2 {[%clk 0:02:46]} 16... Nf8 {[%clk
0:02:21.3]} 17. g3 {[%clk 0:02:26.6]} 17... Ng6 {[%clk 0:02:17.1]} 18. Rab1
{[%clk 0:02:24.1]} 18... Bc8 {[%clk 0:02:01.8]} 19. f3 {[%clk 0:02:20.5]} 19...
Bd7 {[%clk 0:02:00.4]} 20. Bc2 {[%clk 0:02:14]} 20... Qc7 {[%clk 0:01:51.8]} 21.
Rb2 {[%clk 0:02:10.3]} 21... h4 {[%clk 0:01:48.7]} 22. g4 {[%clk 0:02:02]} 22...
Bf6 {[%clk 0:01:19.3]} 23. dxc5 {[%clk 0:01:54]} 23... dxc5 {[%clk 0:01:20.2]}
24. Rfb1 {[%clk 0:01:53.6]} 24... Ra6 {[%clk 0:01:20.3]} 25. Nf1 {[%clk
0:01:53.2]} 25... O-O {[%clk 0:01:15.4]} 26. Rd1 {[%clk 0:01:51.2]} 26... Be6
{[%clk 0:01:12.4]} 27. Bb3 {[%clk 0:01:47.4]} 27... Raa8 {[%clk 0:01:11.4]} 28.
Rbd2 {[%clk 0:01:47.3]} 28... Rad8 {[%clk 0:01:11.4]} 29. Qe1 {[%clk 0:01:43.2]}
29... Rxd2 {[%clk 0:01:10.3]} 30. Bxd2 {[%clk 0:01:43.6]} 30... Rd8 {[%clk
0:01:06.5]} 31. Ne3 {[%clk 0:01:43.3]} 31... Rd3 {[%clk 0:00:57]} 32. Bc2 {[%clk
0:01:41.7]} 32... Rxe3 {[%clk 0:00:46.5]} 33. Bxe3 {[%clk 0:01:40.9]} 33... Bxc4
{[%clk 0:00:46.9]} 34. Qd2 {[%clk 0:01:41]} 34... Be6 {[%clk 0:00:44.9]} 35.
Bxg5 {[%clk 0:01:40.4]} 35... Bxg5 {[%clk 0:00:41]} 36. Qxg5 {[%clk 0:01:41.3]}
36... Kg7 {[%clk 0:00:41.5]} 37. Qd8 {[%clk 0:01:36.8]} 37... Qa7 {[%clk
0:00:27.9]} 38. Rd6 {[%clk 0:01:31.3]} 38... Qa6 {[%clk 0:00:28.1]} 39. Bd3
{[%clk 0:01:29.4]} 39... c4 {[%clk 0:00:26.4]} 40. Bf1 {[%clk 0:01:24.1]} 40...
Qa7 {[%clk 0:00:24.9]} 41. Qxb6 {[%clk 0:01:23]} 41... Qe7 {[%clk 0:00:24.6]}
42. Qd8 {[%clk 0:00:59.8]} 42... Qa7+ {[%clk 0:00:24.7]} 43. Rb6 {[%clk
0:01:00.2]} 43... Nf4 {[%clk 0:00:21.6]} 44. Qb8 {[%clk 0:01:00.5]} 44... Qd7
{[%clk 0:00:19.1]} 45. Qxe5+ {[%clk 0:01:00.6]} 45... Kg6 {[%clk 0:00:14.5]} 46.
Qxf4 {[%clk 0:01:00.6]} 46... Qd1 {[%clk 0:00:14.3]} 47. Qe3 {[%clk 0:00:58]}
47... Qxa4 {[%clk 0:00:12.5]} 48. f4 {[%clk 0:00:57.6]} 48... Kg7 {[%clk
0:00:12.8]} 49. f5 {[%clk 0:00:58.1]} 49... Bd7 {[%clk 0:00:13.2]} 50. Qh6+
{[%clk 0:00:57.8]} 50... Kg8 {[%clk 0:00:13.2]} 51. f6 {[%clk 0:00:56.6]} 1-0

[Event "Early-Titled-Tuesday-Blitz-September-26-2023"]
[Site "Chess.com"]
[Date "2023.09.26"]
[Round "2"]
[White "LileKoridze"]
[Black "Makswolf200817"]
[Result "0-1"]
[WhiteElo "2375"]
[BlackElo "2747"]
[TimeControl "180+1"]
[EndTime "8:17:25 PDT"]
[Termination "Makswolf200817 won on time"]

1. d4 {[%clk 0:03:00.9]} 1... d5 {[%clk 0:02:58.7]} 2. c4 {[%clk 0:02:58.4]}
2... e6 {[%clk 0:02:58.7]} 3. Nf3 {[%clk 0:02:57.5]} 3... Nf6 {[%clk 0:02:57.7]}
4. g3 {[%clk 0:02:55.4]} 4... dxc4 {[%clk 0:02:57.4]} 5. Bg2 {[%clk 0:02:50.7]}
5... c6 {[%clk 0:02:57.4]} 6. O-O {[%clk 0:02:46.7]} 6... b5 {[%clk 0:02:56.6]}
7. a4 {[%clk 0:02:46.1]} 7... Bb7 {[%clk 0:02:56]} 8. Ne5 {[%clk 0:02:36.5]}
8... a6 {[%clk 0:02:55.8]} 9. axb5 {[%clk 0:02:02.2]} 9... axb5 {[%clk 0:02:55]}
10. Rxa8 {[%clk 0:02:01.5]} 10... Bxa8 {[%clk 0:02:55.9]} 11. b3 {[%clk
0:01:59.5]} 11... cxb3 {[%clk 0:02:54.1]} 12. Qxb3 {[%clk 0:01:54.5]} 12... Be7
{[%clk 0:02:39.7]} 13. Nc3 {[%clk 0:01:22.3]} 13... Qxd4 {[%clk 0:01:59.3]} 14.
Bf4 {[%clk 0:01:13]} 14... O-O {[%clk 0:01:54.1]} 15. Nxb5 {[%clk 0:01:10.3]}
15... Qb6 {[%clk 0:01:22.6]} 16. Rb1 {[%clk 0:01:01.7]} 16... cxb5 {[%clk
0:01:06.6]} 17. Bxa8 {[%clk 0:00:57.6]} 17... Na6 {[%clk 0:01:07.1]} 18. Bg2
{[%clk 0:00:50.6]} 18... b4 {[%clk 0:01:06.7]} 19. Be3 {[%clk 0:00:39.2]} 19...
Bc5 {[%clk 0:00:53.1]} 20. Bxc5 {[%clk 0:00:36]} 20... Qxc5 {[%clk 0:00:54]} 21.
Nd3 {[%clk 0:00:36.1]} 21... Qb5 {[%clk 0:00:52.3]} 22. Qc2 {[%clk 0:00:21.4]}
22... Rb8 {[%clk 0:00:49.8]} 23. Rb3 {[%clk 0:00:17.7]} 23... h6 {[%clk
0:00:48.2]} 24. Bc6 {[%clk 0:00:14.4]} 24... Qa5 {[%clk 0:00:45.7]} 25. Qb1
{[%clk 0:00:10.4]} 25... Nd5 {[%clk 0:00:39.4]} 26. e4 {[%clk 0:00:08.2]} 26...
Nc3 {[%clk 0:00:36]} 27. Qc2 {[%clk 0:00:06.8]} 27... Nc5 {[%clk 0:00:28.2]} 28.
Nxc5 {[%clk 0:00:04.4]} 28... Qxc5 {[%clk 0:00:28.6]} 29. Bd7 {[%clk 0:00:04.5]}
29... Qd6 {[%clk 0:00:18.1]} 0-1

[Event "Early-Titled-Tuesday-Blitz-September-26-2023"]
[Site "Chess.com"]
[Date "2023.09.26"]
[Round "2"]
[White "ProphetoftheLord"]
[Black "GP9isback23"]
[Result "0-1"]
[WhiteElo "1334"]
[BlackElo "2647"]
[TimeControl "180+1"]
[EndTime "8:17:26 PDT"]
[Termination "GP9isback23 won on time"]

1. d4 {[%clk 0:03:00.9]} 1... Nf6 {[%clk 0:02:59.7]} 2. Nc3 {[%clk 0:02:58.8]}
2... d5 {[%clk 0:02:59.7]} 3. e4 {[%clk 0:02:58.9]} 3... dxe4 {[%clk 0:02:54.1]}
4. f3 {[%clk 0:02:58.9]} 4... e3 {[%clk 0:02:54.7]} 5. Bd3 {[%clk 0:02:57.2]}
5... c6 {[%clk 0:02:50.8]} 6. Bxe3 {[%clk 0:02:56.9]} 6... Nbd7 {[%clk
0:02:48.9]} 7. Nge2 {[%clk 0:02:57.2]} 7... e6 {[%clk 0:02:48]} 8. Qd2 {[%clk
0:02:53.7]} 8... Be7 {[%clk 0:02:48.3]} 9. O-O-O {[%clk 0:02:52]} 9... Nd5
{[%clk 0:02:46.1]} 10. Nxd5 {[%clk 0:02:49.5]} 10... cxd5 {[%clk 0:02:45.9]} 11.
f4 {[%clk 0:02:44.6]} 11... Nf6 {[%clk 0:02:40.9]} 12. g4 {[%clk 0:02:37]} 12...
Ne4 {[%clk 0:02:16.3]} 13. Bxe4 {[%clk 0:02:25.9]} 13... dxe4 {[%clk 0:02:17.2]}
14. Ng3 {[%clk 0:02:09]} 14... Qd5 {[%clk 0:02:11.6]} 15. Kb1 {[%clk 0:02:06.9]}
15... b5 {[%clk 0:02:08.7]} 16. f5 {[%clk 0:02:02]} 16... Bd7 {[%clk 0:01:50.6]}
17. Rhf1 {[%clk 0:01:49.9]} 17... O-O-O {[%clk 0:00:59.3]} 18. Qg2 {[%clk
0:01:42.3]} 18... Bc6 {[%clk 0:00:57.1]} 19. Rfe1 {[%clk 0:01:28]} 19... g6
{[%clk 0:00:51.3]} 20. fxe6 {[%clk 0:01:21.7]} 20... fxe6 {[%clk 0:00:35.7]} 21.
Ne2 {[%clk 0:01:00.7]} 21... Bh4 {[%clk 0:00:32.6]} 22. Nf4 {[%clk 0:00:57.6]}
22... Qd7 {[%clk 0:00:30.3]} 23. Rf1 {[%clk 0:00:58.4]} 23... Rhf8 {[%clk
0:00:28.2]} 24. h3 {[%clk 0:00:49.7]} 24... Rf7 {[%clk 0:00:25.2]} 25. c3 {[%clk
0:00:47.2]} 25... Rdf8 {[%clk 0:00:25.6]} 26. Ne2 {[%clk 0:00:28.9]} 26... Kb7
{[%clk 0:00:25.5]} 27. Qg1 {[%clk 0:00:22.4]} 27... Bd5 {[%clk 0:00:24.8]} 28.
Qh1 {[%clk 0:00:20.6]} 28... Ka6 {[%clk 0:00:19.7]} 29. Kc2 {[%clk 0:00:19.8]}
29... Bc4 {[%clk 0:00:19.1]} 30. Rxf7 {[%clk 0:00:13.9]} 30... Rxf7 {[%clk
0:00:18.9]} 31. Qh2 {[%clk 0:00:06.3]} 31... Bd5 {[%clk 0:00:16.1]} 32. Qf2
{[%clk 0:00:04.3]} 32... Bxf2 {[%clk 0:00:15.5]} 0-1

[Event "Early-Titled-Tuesday-Blitz-September-26-2023"]
[Site "Chess.com"]
[Date "2023.09.26"]
[Round "2"]
[White "Alexander_Donchenko"]
[Black "Mikhail_Golubev"]
[Result "1-0"]
[WhiteElo "2812"]
[BlackElo "2586"]
[TimeControl "180+1"]
[EndTime "8:17:27 PDT"]
[Termination "Alexander_Donchenko won by resignation"]

1. e4 {[%clk 0:03:00]} 1... c5 {[%clk 0:02:58.4]} 2. Nf3 {[%clk 0:02:59.7]} 2...
d6 {[%clk 0:02:58]} 3. Bb5+ {[%clk 0:02:59.5]} 3... Bd7 {[%clk 0:02:57.4]} 4.
Bxd7+ {[%clk 0:02:58.9]} 4... Qxd7 {[%clk 0:02:58.3]} 5. O-O {[%clk 0:02:57.9]}
5... Nf6 {[%clk 0:02:57.6]} 6. Qe2 {[%clk 0:02:58.2]} 6... e6 {[%clk 0:02:54.4]}
7. c3 {[%clk 0:02:57.8]} 7... Be7 {[%clk 0:02:54.1]} 8. d4 {[%clk 0:02:57.7]}
8... O-O {[%clk 0:02:37]} 9. dxc5 {[%clk 0:02:56]} 9... dxc5 {[%clk 0:02:36.9]}
10. Rd1 {[%clk 0:02:55.9]} 10... Qc6 {[%clk 0:02:34.5]} 11. e5 {[%clk
0:02:45.3]} 11... Nfd7 {[%clk 0:02:01.8]} 12. Nbd2 {[%clk 0:02:41.5]} 12... Qc7
{[%clk 0:01:46.2]} 13. Nc4 {[%clk 0:02:36.7]} 13... Nc6 {[%clk 0:01:44.7]} 14.
a4 {[%clk 0:02:35.7]} 14... Rad8 {[%clk 0:01:35.8]} 15. Bf4 {[%clk 0:02:33.5]}
15... b6 {[%clk 0:01:30.7]} 16. h4 {[%clk 0:02:32.8]} 16... a6 {[%clk
0:01:26.4]} 17. h5 {[%clk 0:02:32.2]} 17... b5 {[%clk 0:01:15.6]} 18. axb5
{[%clk 0:02:31.7]} 18... axb5 {[%clk 0:01:16.5]} 19. Na3 {[%clk 0:02:31.9]}
19... b4 {[%clk 0:00:59.1]} 20. Nc4 {[%clk 0:02:31.6]} 20... Nb6 {[%clk
0:00:55.4]} 21. h6 {[%clk 0:02:25.2]} 21... g6 {[%clk 0:00:51.5]} 22. Nxb6
{[%clk 0:01:26.4]} 22... Qxb6 {[%clk 0:00:52.4]} 23. Bg5 {[%clk 0:01:24.2]}
23... Qc7 {[%clk 0:00:40.5]} 24. Bxe7 {[%clk 0:01:21.8]} 24... Qxe7 {[%clk
0:00:37.7]} 25. Qe4 {[%clk 0:01:21]} 25... Qc7 {[%clk 0:00:31.7]} 26. Qf4 {[%clk
0:01:20.6]} 26... Rxd1+ {[%clk 0:00:27.5]} 27. Rxd1 {[%clk 0:01:21.2]} 27... f6
{[%clk 0:00:27.1]} 28. Qg4 {[%clk 0:01:13.8]} 28... Nxe5 {[%clk 0:00:14.3]} 29.
Qxe6+ {[%clk 0:01:12.9]} 29... Qf7 {[%clk 0:00:10.7]} 30. Qxf7+ {[%clk
0:01:12.7]} 30... Nxf7 {[%clk 0:00:11.3]} 31. Rd5 {[%clk 0:01:10.1]} 31... bxc3
{[%clk 0:00:10.6]} 32. bxc3 {[%clk 0:01:10.8]} 32... Nxh6 {[%clk 0:00:10.6]} 33.
Rxc5 {[%clk 0:01:10.8]} 33... Nf5 {[%clk 0:00:11]} 34. Nd2 {[%clk 0:01:09]}
34... Re8 {[%clk 0:00:07.6]} 35. f3 {[%clk 0:01:07.9]} 35... Kf7 {[%clk
0:00:06.9]} 36. Ne4 {[%clk 0:01:07.6]} 36... Re7 {[%clk 0:00:06.5]} 37. Kf2
{[%clk 0:01:06.3]} 37... h5 {[%clk 0:00:06.2]} 38. Ra5 {[%clk 0:01:05.1]} 38...
Rd7 {[%clk 0:00:04.5]} 39. c4 {[%clk 0:01:02.9]} 39... Nd6 {[%clk 0:00:04.5]}
40. Nd2 {[%clk 0:00:59.3]} 40... Rc7 {[%clk 0:00:03.8]} 41. c5 {[%clk
0:00:57.1]} 41... Nb7 {[%clk 0:00:02.9]} 42. Ra7 {[%clk 0:00:56.9]} 42... Rd7
{[%clk 0:00:02.7]} 43. c6 {[%clk 0:00:42.5]} 43... Rxd2+ {[%clk 0:00:02.8]} 44.
Ke3 {[%clk 0:00:42.8]} 44... Rc2 {[%clk 0:00:03.7]} 45. cxb7 {[%clk 0:00:41.4]}
45... Ke6 {[%clk 0:00:04]} 46. b8=Q {[%clk 0:00:40.6]} 1-0

[Event "Early-Titled-Tuesday-Blitz-September-26-2023"]
[Site "Chess.com"]
[Date "2023.09.26"]
[Round "2"]
[White "FlemingA"]
[Black "Elaisaz"]
[Result "1-0"]
[WhiteElo "2439"]
[BlackElo "2155"]
[TimeControl "180+1"]
[EndTime "8:17:30 PDT"]
[Termination "FlemingA won on time"]

1. g3 {[%clk 0:03:00.9]} 1... g6 {[%clk 0:02:56.5]} 2. Bg2 {[%clk 0:03:00.4]}
2... Bg7 {[%clk 0:02:56.8]} 3. e4 {[%clk 0:02:59.8]} 3... c5 {[%clk 0:02:52.9]}
4. Ne2 {[%clk 0:02:58.8]} 4... Nc6 {[%clk 0:02:53]} 5. O-O {[%clk 0:02:58.9]}
5... d6 {[%clk 0:02:50.9]} 6. h3 {[%clk 0:02:58.3]} 6... Nf6 {[%clk 0:02:50.7]}
7. c3 {[%clk 0:02:57.4]} 7... O-O {[%clk 0:02:21.9]} 8. d4 {[%clk 0:02:57.6]}
8... cxd4 {[%clk 0:02:19.5]} 9. cxd4 {[%clk 0:02:58.1]} 9... e5 {[%clk
0:02:00.4]} 10. Nbc3 {[%clk 0:02:47.7]} 10... Re8 {[%clk 0:01:40.9]} 11. d5
{[%clk 0:02:43.1]} 11... Ne7 {[%clk 0:01:29.1]} 12. a4 {[%clk 0:02:39.3]} 12...
Nd7 {[%clk 0:01:23.9]} 13. a5 {[%clk 0:02:38.9]} 13... b6 {[%clk 0:01:20.8]} 14.
axb6 {[%clk 0:02:24.7]} 14... Nxb6 {[%clk 0:01:11.8]} 15. Qd3 {[%clk 0:02:18.8]}
15... a5 {[%clk 0:01:10.8]} 16. Nb5 {[%clk 0:02:12.6]} 16... Qd7 {[%clk
0:01:04.2]} 17. Be3 {[%clk 0:02:07.2]} 17... Ba6 {[%clk 0:00:53.6]} 18. Rxa5
{[%clk 0:02:02]} 18... Reb8 {[%clk 0:00:41.9]} 19. Nec3 {[%clk 0:01:49.7]} 19...
Qc8 {[%clk 0:00:27.6]} 20. b3 {[%clk 0:01:14.8]} 20... Qd8 {[%clk 0:00:20.3]}
21. Rfa1 {[%clk 0:01:12.2]} 21... Bxb5 {[%clk 0:00:17.3]} 22. Nxb5 {[%clk
0:01:08.2]} 22... Rxa5 {[%clk 0:00:16.6]} 23. Rxa5 {[%clk 0:01:09.1]} 23...
Nbxd5 {[%clk 0:00:16.9]} 24. Ra7 {[%clk 0:00:47]} 24... Nxe3 {[%clk 0:00:16.3]}
25. fxe3 {[%clk 0:00:47.2]} 25... Nc6 {[%clk 0:00:08.2]} 26. Ra1 {[%clk
0:00:30.7]} 26... Qb6 {[%clk 0:00:07.8]} 27. Nxd6 {[%clk 0:00:25.3]} 27... Bh6
{[%clk 0:00:06.8]} 28. Nc4 {[%clk 0:00:13.1]} 28... Qxb3 {[%clk 0:00:07.1]} 29.
Qxb3 {[%clk 0:00:13.2]} 29... Rxb3 {[%clk 0:00:07.4]} 30. Ra8+ {[%clk
0:00:12.6]} 30... Kg7 {[%clk 0:00:07.7]} 31. Rc8 {[%clk 0:00:12.7]} 31... Ne7
{[%clk 0:00:05.3]} 32. Rc7 {[%clk 0:00:11.9]} 32... Ng8 {[%clk 0:00:02.6]} 33.
Nxe5 {[%clk 0:00:12.1]} 33... Bxe3+ {[%clk 0:00:02.3]} 34. Kh2 {[%clk
0:00:12.6]} 1-0

[Event "Early-Titled-Tuesday-Blitz-September-26-2023"]
[Site "Chess.com"]
[Date "2023.09.26"]
[Round "2"]
[White "Martial2008"]
[Black "Sattarov_Bobur"]
[Result "1-0"]
[WhiteElo "2619"]
[BlackElo "2836"]
[TimeControl "180+1"]
[EndTime "8:17:34 PDT"]
[Termination "Martial2008 won on time"]

1. d4 {[%clk 0:03:00.9]} 1... Nf6 {[%clk 0:02:59.6]} 2. Nf3 {[%clk 0:02:59.9]}
2... g6 {[%clk 0:02:56.2]} 3. Bg5 {[%clk 0:02:58.9]} 3... Bg7 {[%clk 0:02:55.6]}
4. Nbd2 {[%clk 0:02:57.7]} 4... d6 {[%clk 0:02:56]} 5. e4 {[%clk 0:02:57.1]}
5... O-O {[%clk 0:02:55.8]} 6. c3 {[%clk 0:02:56.4]} 6... c5 {[%clk 0:02:56]} 7.
dxc5 {[%clk 0:02:42.4]} 7... dxc5 {[%clk 0:02:56.9]} 8. h3 {[%clk 0:02:42.1]}
8... Nc6 {[%clk 0:02:56]} 9. Be2 {[%clk 0:02:42.1]} 9... Qc7 {[%clk 0:02:54.9]}
10. O-O {[%clk 0:02:42]} 10... Nh5 {[%clk 0:02:53.3]} 11. Qc2 {[%clk 0:02:36.1]}
11... b6 {[%clk 0:02:50.9]} 12. Rfe1 {[%clk 0:02:33.7]} 12... Bb7 {[%clk
0:02:50.1]} 13. Rad1 {[%clk 0:02:33]} 13... Rad8 {[%clk 0:02:44.8]} 14. a4
{[%clk 0:02:32]} 14... Nf4 {[%clk 0:02:39.6]} 15. Bf1 {[%clk 0:02:31.3]} 15...
Ne6 {[%clk 0:02:29.9]} 16. Bh4 {[%clk 0:02:30.3]} 16... Rd7 {[%clk 0:02:25.5]}
17. Bg3 {[%clk 0:02:30.4]} 17... Qc8 {[%clk 0:02:25.3]} 18. Nc4 {[%clk
0:02:30.5]} 18... Rfd8 {[%clk 0:02:24.8]} 19. Rxd7 {[%clk 0:02:21.7]} 19... Rxd7
{[%clk 0:02:25.7]} 20. Nfe5 {[%clk 0:02:19.9]} 20... Nxe5 {[%clk 0:02:24.1]} 21.
Nxe5 {[%clk 0:02:17.2]} 21... Rd8 {[%clk 0:02:19.8]} 22. Bc4 {[%clk 0:02:17]}
22... Ba6 {[%clk 0:02:00.4]} 23. Bd5 {[%clk 0:02:11.6]} 23... Bb7 {[%clk
0:02:00.3]} 24. Bc4 {[%clk 0:02:11.2]} 24... Ba6 {[%clk 0:01:59.7]} 25. Bd5
{[%clk 0:02:02.8]} 25... Bf6 {[%clk 0:01:45.2]} 26. Qb3 {[%clk 0:01:59.8]} 26...
Bb7 {[%clk 0:01:37.8]} 27. Ng4 {[%clk 0:01:50.1]} 27... Bg7 {[%clk 0:01:19]} 28.
a5 {[%clk 0:01:50]} 28... Bxd5 {[%clk 0:01:02.2]} 29. exd5 {[%clk 0:01:49.9]}
29... c4 {[%clk 0:01:02.7]} 30. Qb5 {[%clk 0:01:42]} 30... Nc7 {[%clk
0:00:46.6]} 31. Bxc7 {[%clk 0:01:42]} 31... Qxc7 {[%clk 0:00:47.5]} 32. axb6
{[%clk 0:01:42.5]} 32... axb6 {[%clk 0:00:46.1]} 33. Ne3 {[%clk 0:01:34.8]}
33... Qe5 {[%clk 0:00:20.2]} 34. Qxc4 {[%clk 0:01:29.3]} 34... h5 {[%clk
0:00:20.3]} 35. Rd1 {[%clk 0:01:21.6]} 35... Bh6 {[%clk 0:00:17.5]} 36. Qd4
{[%clk 0:01:10]} 36... Qc7 {[%clk 0:00:12.7]} 37. Qe4 {[%clk 0:00:54.1]} 37...
b5 {[%clk 0:00:12.2]} 38. Nc2 {[%clk 0:00:52]} 38... Rd7 {[%clk 0:00:04.1]} 39.
Nb4 {[%clk 0:00:51.7]} 39... Qc5 {[%clk 0:00:02.3]} 40. Re1 {[%clk 0:00:36.3]}
40... Kf8 {[%clk 0:00:01.7]} 41. Qe5 {[%clk 0:00:35.4]} 1-0